[Event "*** Titled Tuesday Blitz"]
[Site "Chess.com"]
[Date "2020.04.21"]
[Round "6"]
[White "BrizuelaReivis"]
[Black "DucksParadise"]
[Result "1-0"]
[WhiteElo "2267"]
[BlackElo "2062"]
[TimeControl "180+1"]
[EndTime "11:07:00 PDT"]
[Termination "BrizuelaReivis won on time"]

1. d4 {[%clk 0:03:00.9]} 1... d6 {[%clk 0:02:58]} 2. c4 {[%clk 0:03:01.4]} 2...
e5 {[%clk 0:02:56.8]} 3. Nf3 {[%clk 0:03:02.3]} 3... e4 {[%clk 0:02:54.9]} 4.
Ng5 {[%clk 0:03:01.2]} 4... f5 {[%clk 0:02:55.4]} 5. e3 {[%clk 0:02:50.5]} 5...
Be7 {[%clk 0:02:54.2]} 6. Nh3 {[%clk 0:02:49]} 6... c6 {[%clk 0:02:40]} 7. Nc3
{[%clk 0:02:48.8]} 7... Nf6 {[%clk 0:02:38.6]} 8. Qb3 {[%clk 0:02:49.3]} 8...
Na6 {[%clk 0:02:19.2]} 9. Bd2 {[%clk 0:02:36.4]} 9... Nc7 {[%clk 0:02:11.5]} 10.
Rc1 {[%clk 0:02:36.8]} 10... O-O {[%clk 0:01:53.9]} 11. Be2 {[%clk 0:02:37.1]}
11... Rb8 {[%clk 0:01:26.5]} 12. Nf4 {[%clk 0:02:28.4]} 12... g5 {[%clk
0:01:05.6]} 13. Nh5 {[%clk 0:02:19.2]} 13... Nxh5 {[%clk 0:00:58]} 14. Bxh5
{[%clk 0:02:20.1]} 14... Be6 {[%clk 0:00:42.7]} 15. d5 {[%clk 0:02:19.1]} 15...
Bf7 {[%clk 0:00:37.7]} 16. Bxf7+ {[%clk 0:02:15.6]} 16... Rxf7 {[%clk
0:00:38.6]} 17. Ne2 {[%clk 0:02:01.7]} 17... c5 {[%clk 0:00:27.4]} 18. Qa3
{[%clk 0:01:53]} 18... a6 {[%clk 0:00:19.8]} 19. b4 {[%clk 0:01:51.7]} 19...
cxb4 {[%clk 0:00:09]} 20. Bxb4 {[%clk 0:01:47.5]} 20... b5 {[%clk 0:00:09.1]}
21. Nd4 {[%clk 0:01:47.3]} 21... bxc4 {[%clk 0:00:08.3]} 22. Nc6 {[%clk
0:01:47.2]} 22... Qc8 {[%clk 0:00:06.5]} 23. Nxb8 {[%clk 0:01:46.8]} 23... Qxb8
{[%clk 0:00:07.4]} 24. Bxd6 {[%clk 0:01:46.5]} 24... Nb5 {[%clk 0:00:03.4]} 25.
Bxb8 {[%clk 0:01:39.9]} 1-0

[Event "*** Titled Tuesday Blitz"]
[Site "Chess.com"]
[Date "2020.04.21"]
[Round "6"]
[White "WhiteKnight2612"]
[Black "Vamostodorecto"]
[Result "1-0"]
[WhiteElo "2647"]
[BlackElo "2485"]
[TimeControl "180+1"]
[EndTime "11:07:04 PDT"]
[Termination "WhiteKnight2612 won on time"]

1. Nf3 {[%clk 0:03:00.9]} 1... d5 {[%clk 0:02:59.3]} 2. g3 {[%clk 0:03:01.8]}
2... Nc6 {[%clk 0:02:59.3]} 3. Bg2 {[%clk 0:03:02.4]} 3... e5 {[%clk 0:02:58.1]}
4. d3 {[%clk 0:03:02.9]} 4... Bg4 {[%clk 0:02:57.5]} 5. O-O {[%clk 0:03:02.9]}
5... Qd7 {[%clk 0:02:56.7]} 6. Nc3 {[%clk 0:02:59.2]} 6... d4 {[%clk 0:02:44.5]}
7. Ne4 {[%clk 0:02:57.4]} 7... Bh3 {[%clk 0:02:42.1]} 8. Bxh3 {[%clk 0:02:53.5]}
8... Qxh3 {[%clk 0:02:40.6]} 9. c3 {[%clk 0:02:54.1]} 9... O-O-O {[%clk
0:02:14.7]} 10. cxd4 {[%clk 0:02:51.7]} 10... Nxd4 {[%clk 0:02:12.4]} 11. Nxe5
{[%clk 0:02:51.2]} 11... Qh5 {[%clk 0:01:49.2]} 12. f4 {[%clk 0:02:43]} 12...
Nxe2+ {[%clk 0:01:33.5]} 13. Kg2 {[%clk 0:02:40.1]} 13... f6 {[%clk 0:01:26]}
14. Nc4 {[%clk 0:02:31.1]} 14... g6 {[%clk 0:00:49.3]} 15. Be3 {[%clk
0:01:54.1]} 15... f5 {[%clk 0:00:46.3]} 16. Ng5 {[%clk 0:01:51.3]} 16... Nf6
{[%clk 0:00:36.8]} 17. Nf3 {[%clk 0:01:32.7]} 17... Ng4 {[%clk 0:00:14.6]} 18.
Qxe2 {[%clk 0:01:32.1]} 18... Re8 {[%clk 0:00:06.7]} 19. Rae1 {[%clk 0:01:27.4]}
19... Bc5 {[%clk 0:00:06]} 20. d4 {[%clk 0:01:24.2]} 1-0

[Event "*** Titled Tuesday Blitz"]
[Site "Chess.com"]
[Date "2020.04.21"]
[Round "6"]
[White "Xeniya2005"]
[Black "Diego_FloresQ"]
[Result "1-0"]
[WhiteElo "2270"]
[BlackElo "2406"]
[TimeControl "180+1"]
[EndTime "11:07:07 PDT"]
[Termination "Xeniya2005 won by checkmate"]

1. e4 {[%clk 0:03:00.9]} 1... c5 {[%clk 0:02:50.2]} 2. Nf3 {[%clk 0:02:59.1]}
2... e6 {[%clk 0:02:49.3]} 3. d4 {[%clk 0:02:59.7]} 3... cxd4 {[%clk 0:02:46.5]}
4. Nxd4 {[%clk 0:02:59.1]} 4... Nf6 {[%clk 0:02:44.6]} 5. Nc3 {[%clk 0:02:58.2]}
5... d6 {[%clk 0:02:41.2]} 6. Be3 {[%clk 0:02:49]} 6... a6 {[%clk 0:02:28.1]} 7.
g3 {[%clk 0:02:35.8]} 7... b5 {[%clk 0:02:26.1]} 8. Bg2 {[%clk 0:02:35.2]} 8...
Bb7 {[%clk 0:02:26.5]} 9. a3 {[%clk 0:02:34.8]} 9... Nbd7 {[%clk 0:02:26.3]} 10.
O-O {[%clk 0:02:33.2]} 10... Qc7 {[%clk 0:02:19]} 11. Re1 {[%clk 0:02:25.7]}
11... Be7 {[%clk 0:02:17.9]} 12. Qe2 {[%clk 0:02:18.7]} 12... O-O {[%clk
0:02:17.4]} 13. f4 {[%clk 0:02:15.3]} 13... Rac8 {[%clk 0:02:13.6]} 14. Rad1
{[%clk 0:02:13.8]} 14... Rfe8 {[%clk 0:02:13.2]} 15. Nb3 {[%clk 0:02:05]} 15...
Qb8 {[%clk 0:02:06]} 16. g4 {[%clk 0:01:51.9]} 16... Rxc3 {[%clk 0:02:02]} 17.
bxc3 {[%clk 0:01:49.1]} 17... Nxe4 {[%clk 0:02:02.6]} 18. Bd4 {[%clk 0:01:45.4]}
18... d5 {[%clk 0:01:59.5]} 19. Rf1 {[%clk 0:01:30.6]} 19... Bd6 {[%clk
0:01:42.8]} 20. Qe3 {[%clk 0:01:23.7]} 20... Nf8 {[%clk 0:01:34.8]} 21. Nd2
{[%clk 0:01:20.9]} 21... f5 {[%clk 0:01:25.5]} 22. Nxe4 {[%clk 0:01:16.7]} 22...
dxe4 {[%clk 0:01:24.4]} 23. gxf5 {[%clk 0:01:10.9]} 23... exf5 {[%clk 0:01:24]}
24. Qg3 {[%clk 0:01:07.6]} 24... Ng6 {[%clk 0:01:23.2]} 25. Be3 {[%clk
0:01:01.3]} 25... Bxa3 {[%clk 0:01:20.6]} 26. h4 {[%clk 0:00:59.8]} 26... Nf8
{[%clk 0:01:10.1]} 27. Bh3 {[%clk 0:00:52]} 27... Qc8 {[%clk 0:00:53]} 28. Bd4
{[%clk 0:00:50]} 28... Bc5 {[%clk 0:00:47.5]} 29. Qxg7# {[%clk 0:00:49.2]} 1-0

[Event "*** Titled Tuesday Blitz"]
[Site "Chess.com"]
[Date "2020.04.21"]
[Round "6"]
[White "jacky72"]
[Black "Riptide27"]
[Result "1-0"]
[WhiteElo "2712"]
[BlackElo "2491"]
[TimeControl "180+1"]
[EndTime "11:07:08 PDT"]
[Termination "jacky72 won by resignation"]

1. d4 {[%clk 0:03:00.9]} 1... c5 {[%clk 0:02:59.1]} 2. d5 {[%clk 0:03:00.9]}
2... g6 {[%clk 0:02:58.9]} 3. c4 {[%clk 0:03:01.1]} 3... Bg7 {[%clk 0:02:58.6]}
4. e4 {[%clk 0:03:01.4]} 4... d6 {[%clk 0:02:57.9]} 5. Nc3 {[%clk 0:03:01.6]}
5... Nf6 {[%clk 0:02:55.5]} 6. Bd3 {[%clk 0:03:02]} 6... O-O {[%clk 0:02:54.6]}
7. h3 {[%clk 0:03:02.5]} 7... a6 {[%clk 0:02:54.5]} 8. a4 {[%clk 0:03:02]} 8...
e6 {[%clk 0:02:54.4]} 9. Nf3 {[%clk 0:03:02.4]} 9... exd5 {[%clk 0:02:54.3]} 10.
exd5 {[%clk 0:03:03.3]} 10... Re8+ {[%clk 0:02:53.7]} 11. Be3 {[%clk 0:03:03.7]}
11... Bh6 {[%clk 0:02:51.8]} 12. O-O {[%clk 0:03:03.8]} 12... Bxe3 {[%clk
0:02:49.7]} 13. fxe3 {[%clk 0:03:04.7]} 13... Qe7 {[%clk 0:02:48.3]} 14. e4
{[%clk 0:03:05]} 14... Nbd7 {[%clk 0:02:47]} 15. Qd2 {[%clk 0:03:05.4]} 15...
Ne5 {[%clk 0:02:45.9]} 16. Nxe5 {[%clk 0:03:05.3]} 16... Qxe5 {[%clk 0:02:45.1]}
17. Qf2 {[%clk 0:02:55.9]} 17... Kg7 {[%clk 0:02:41.8]} 18. Rae1 {[%clk
0:02:55]} 18... Bd7 {[%clk 0:02:40.3]} 19. Re3 {[%clk 0:02:55.3]} 19... Re7
{[%clk 0:01:51.3]} 20. Rf3 {[%clk 0:02:54]} 20... Ng8 {[%clk 0:01:49.7]} 21.
Rxf7+ {[%clk 0:02:53.1]} 21... Kh8 {[%clk 0:01:49.8]} 22. Rxe7 {[%clk 0:02:48]}
22... Qxe7 {[%clk 0:01:49.2]} 23. Qf7 {[%clk 0:02:46]} 23... Re8 {[%clk
0:01:46.9]} 24. Qxe7 {[%clk 0:02:45.3]} 24... Rxe7 {[%clk 0:01:46.3]} 25. a5
{[%clk 0:02:45.7]} 25... Kg7 {[%clk 0:01:46.4]} 26. g4 {[%clk 0:02:36.6]} 26...
Nf6 {[%clk 0:01:44.3]} 27. Kg2 {[%clk 0:02:37]} 27... Be8 {[%clk 0:01:42.6]} 28.
Kg3 {[%clk 0:02:33.9]} 28... Nd7 {[%clk 0:01:42.3]} 29. Be2 {[%clk 0:02:29.5]}
29... g5 {[%clk 0:01:37.4]} 30. h4 {[%clk 0:02:29.3]} 30... h6 {[%clk
0:01:36.4]} 31. hxg5 {[%clk 0:02:22.8]} 31... hxg5 {[%clk 0:01:37.3]} 32. Rf5
{[%clk 0:02:23.5]} 32... Re5 {[%clk 0:01:30.4]} 33. Bd3 {[%clk 0:02:18.9]} 33...
Bg6 {[%clk 0:01:29.8]} 34. Rf1 {[%clk 0:02:06.6]} 34... Re8 {[%clk 0:01:26.4]}
35. Rb1 {[%clk 0:02:03.9]} 35... Rf8 {[%clk 0:01:20.2]} 36. b4 {[%clk
0:02:02.2]} 36... Rf4 {[%clk 0:01:14.3]} 37. b5 {[%clk 0:01:55.8]} 37... Ne5
{[%clk 0:01:11.2]} 38. bxa6 {[%clk 0:01:56]} 38... bxa6 {[%clk 0:01:10.2]} 39.
Rb7+ {[%clk 0:01:54.9]} 39... Kf8 {[%clk 0:01:07]} 40. Be2 {[%clk 0:01:54.9]}
40... Bxe4 {[%clk 0:01:01.7]} 41. Rb6 {[%clk 0:01:55.1]} 41... Bd3 {[%clk
0:01:01.1]} 42. Bxd3 {[%clk 0:01:49.7]} 42... Nxd3 {[%clk 0:00:53.9]} 43. Rxa6
{[%clk 0:01:38.2]} 43... Rxc4 {[%clk 0:00:54]} 44. Nb5 {[%clk 0:01:38.7]} 44...
Rc3 {[%clk 0:00:49.1]} 45. Nxc3 {[%clk 0:01:35.2]} 1-0

[Event "*** Titled Tuesday Blitz"]
[Site "Chess.com"]
[Date "2020.04.21"]
[Round "6"]
[White "KarpovVadim"]
[Black "UCantHandleDenker"]
[Result "0-1"]
[WhiteElo "2319"]
[BlackElo "2528"]
[TimeControl "180+1"]
[EndTime "11:07:11 PDT"]
[Termination "UCantHandleDenker won by resignation"]

1. Nf3 {[%clk 0:03:00.9]} 1... Nf6 {[%clk 0:02:59.3]} 2. c4 {[%clk 0:03:01.8]}
2... g6 {[%clk 0:02:59]} 3. g3 {[%clk 0:02:59.9]} 3... Bg7 {[%clk 0:02:59.3]} 4.
Bg2 {[%clk 0:03:00.8]} 4... O-O {[%clk 0:03:00.2]} 5. O-O {[%clk 0:03:00.9]}
5... d6 {[%clk 0:02:58.4]} 6. Nc3 {[%clk 0:02:59.9]} 6... Nc6 {[%clk 0:02:57.3]}
7. d3 {[%clk 0:02:59.5]} 7... e5 {[%clk 0:02:56.9]} 8. Rb1 {[%clk 0:02:59.2]}
8... a5 {[%clk 0:02:56.4]} 9. a3 {[%clk 0:02:58.8]} 9... h6 {[%clk 0:02:56.9]}
10. b4 {[%clk 0:02:58]} 10... axb4 {[%clk 0:02:57.8]} 11. axb4 {[%clk
0:02:57.2]} 11... Be6 {[%clk 0:02:58.4]} 12. b5 {[%clk 0:02:56.5]} 12... Ne7
{[%clk 0:02:58.4]} 13. Bb2 {[%clk 0:02:55.6]} 13... Qd7 {[%clk 0:02:57.8]} 14.
Re1 {[%clk 0:02:52.2]} 14... Bh3 {[%clk 0:02:56.3]} 15. Bh1 {[%clk 0:02:50.8]}
15... Ng4 {[%clk 0:02:50.9]} 16. Nd2 {[%clk 0:02:49]} 16... Rab8 {[%clk
0:02:43.5]} 17. Ra1 {[%clk 0:02:45.5]} 17... f5 {[%clk 0:02:31.8]} 18. Ra7
{[%clk 0:02:36.1]} 18... b6 {[%clk 0:02:23.5]} 19. Nd5 {[%clk 0:02:24.3]} 19...
Nxd5 {[%clk 0:02:23.2]} 20. Bxd5+ {[%clk 0:02:22.6]} 20... Kh8 {[%clk
0:02:23.2]} 21. e3 {[%clk 0:02:10.9]} 21... g5 {[%clk 0:02:08]} 22. Qa1 {[%clk
0:01:47.7]} 22... f4 {[%clk 0:02:01.9]} 23. exf4 {[%clk 0:01:42.7]} 23... gxf4
{[%clk 0:02:00.5]} 24. Ne4 {[%clk 0:01:41.6]} 24... fxg3 {[%clk 0:01:52.9]} 25.
hxg3 {[%clk 0:01:38.6]} 25... Rbc8 {[%clk 0:01:40]} 26. Qd1 {[%clk 0:01:30.9]}
26... Qf5 {[%clk 0:01:23.3]} 27. Qe2 {[%clk 0:01:25.4]} 27... Qg6 {[%clk
0:01:14]} 28. Bc1 {[%clk 0:01:16.2]} 28... Nxf2 {[%clk 0:01:06.7]} 29. Nxf2
{[%clk 0:01:11.7]} 29... Qxg3+ {[%clk 0:01:05.8]} 0-1

[Event "*** Titled Tuesday Blitz"]
[Site "Chess.com"]
[Date "2020.04.21"]
[Round "6"]
[White "albano87"]
[Black "SCIM"]
[Result "0-1"]
[WhiteElo "2372"]
[BlackElo "2543"]
[TimeControl "180+1"]
[EndTime "11:07:12 PDT"]
[Termination "SCIM won by resignation"]

1. d4 {[%clk 0:02:56.6]} 1... Nf6 {[%clk 0:02:58.9]} 2. Nf3 {[%clk 0:02:57.5]}
2... g6 {[%clk 0:02:58.9]} 3. g3 {[%clk 0:02:57.9]} 3... Bg7 {[%clk 0:02:59.3]}
4. Bg2 {[%clk 0:02:58.2]} 4... d5 {[%clk 0:03:00.2]} 5. O-O {[%clk 0:02:59.1]}
5... O-O {[%clk 0:03:00.4]} 6. c4 {[%clk 0:02:59.5]} 6... dxc4 {[%clk
0:03:01.3]} 7. Na3 {[%clk 0:02:58.5]} 7... c3 {[%clk 0:03:01.9]} 8. bxc3 {[%clk
0:02:58.7]} 8... c5 {[%clk 0:03:02.1]} 9. Ne5 {[%clk 0:02:58.8]} 9... Nc6 {[%clk
0:02:54.9]} 10. Nac4 {[%clk 0:02:58]} 10... Nxe5 {[%clk 0:02:50.3]} 11. Nxe5
{[%clk 0:02:54.1]} 11... Nd5 {[%clk 0:02:49.7]} 12. Bb2 {[%clk 0:02:43.4]} 12...
Bxe5 {[%clk 0:02:48.3]} 13. dxe5 {[%clk 0:02:43.4]} 13... Be6 {[%clk 0:02:48.9]}
14. f4 {[%clk 0:02:12.7]} 14... c4 {[%clk 0:02:44.2]} 15. Bxd5 {[%clk
0:01:54.8]} 15... Bxd5 {[%clk 0:02:42.2]} 16. Qd4 {[%clk 0:01:49.4]} 16... Qb6
{[%clk 0:02:31]} 17. Ba3 {[%clk 0:01:30.2]} 17... Qxd4+ {[%clk 0:02:29.2]} 18.
cxd4 {[%clk 0:01:29.2]} 18... Rfe8 {[%clk 0:02:30.1]} 19. Rab1 {[%clk
0:01:21.4]} 19... b6 {[%clk 0:02:30.2]} 20. Rfe1 {[%clk 0:01:14.3]} 20... Be4
{[%clk 0:02:26.9]} 21. Rb4 {[%clk 0:01:13.3]} 21... Rac8 {[%clk 0:02:24]} 22.
Kf2 {[%clk 0:01:11.2]} 22... c3 {[%clk 0:02:18.4]} 23. Rc1 {[%clk 0:01:10.9]}
23... c2 {[%clk 0:02:16.4]} 24. Bb2 {[%clk 0:01:10]} 24... f5 {[%clk 0:02:14.6]}
25. Ke3 {[%clk 0:01:06.2]} 25... Kf7 {[%clk 0:02:08]} 26. Kd2 {[%clk 0:01:05.2]}
26... Ke6 {[%clk 0:02:04.1]} 27. e3 {[%clk 0:01:00.6]} 27... Rc6 {[%clk
0:02:02]} 28. a3 {[%clk 0:00:58.8]} 28... Rec8 {[%clk 0:01:59.5]} 29. Rb3 {[%clk
0:00:57.2]} 29... Kd5 {[%clk 0:01:55.5]} 30. Rb5+ {[%clk 0:00:56.1]} 30... Ke6
{[%clk 0:01:55.5]} 31. Rb3 {[%clk 0:00:57]} 31... h6 {[%clk 0:01:52.9]} 32. h4
{[%clk 0:00:49.5]} 32... Rc4 {[%clk 0:01:47.2]} 33. Rc3 {[%clk 0:00:49.3]} 33...
Rxc3 {[%clk 0:01:45.1]} 34. Bxc3 {[%clk 0:00:49.5]} 34... Kd5 {[%clk 0:01:44.1]}
35. Bb4 {[%clk 0:00:46.2]} 35... Rc7 {[%clk 0:01:41]} 36. Rh1 {[%clk 0:00:31.6]}
36... Bxh1 {[%clk 0:01:38.5]} 0-1

[Event "*** Titled Tuesday Blitz"]
[Site "Chess.com"]
[Date "2020.04.21"]
[Round "6"]
[White "Gentlejimmy7"]
[Black "Natalya_Buksa"]
[Result "0-1"]
[WhiteElo "2602"]
[BlackElo "2487"]
[TimeControl "180+1"]
[EndTime "11:07:15 PDT"]
[Termination "Natalya_Buksa won by checkmate"]

1. d4 {[%clk 0:03:00.9]} 1... d5 {[%clk 0:02:59.7]} 2. Nf3 {[%clk 0:02:58.1]}
2... e6 {[%clk 0:03:00.6]} 3. g3 {[%clk 0:02:57.6]} 3... Nf6 {[%clk 0:03:01.5]}
4. Bg2 {[%clk 0:02:58.5]} 4... Be7 {[%clk 0:03:00]} 5. O-O {[%clk 0:02:59.4]}
5... O-O {[%clk 0:03:00.6]} 6. c4 {[%clk 0:02:59.7]} 6... dxc4 {[%clk 0:03:01]}
7. Qc2 {[%clk 0:02:59.4]} 7... c6 {[%clk 0:03:01.9]} 8. Qxc4 {[%clk 0:02:57.7]}
8... b5 {[%clk 0:03:02.8]} 9. Qc2 {[%clk 0:02:55.1]} 9... Bb7 {[%clk 0:03:02.9]}
10. Bd2 {[%clk 0:02:50.7]} 10... Nbd7 {[%clk 0:03:02.8]} 11. Nc3 {[%clk
0:02:49.1]} 11... a6 {[%clk 0:02:52.5]} 12. a3 {[%clk 0:02:47.6]} 12... c5
{[%clk 0:02:52.5]} 13. dxc5 {[%clk 0:02:46.6]} 13... Nxc5 {[%clk 0:02:51.9]} 14.
b4 {[%clk 0:02:46.4]} 14... Nce4 {[%clk 0:02:50.9]} 15. Nxe4 {[%clk 0:02:43]}
15... Bxe4 {[%clk 0:02:50.1]} 16. Qb2 {[%clk 0:02:41.9]} 16... Rc8 {[%clk
0:02:48.8]} 17. Rfd1 {[%clk 0:02:41.6]} 17... Qb6 {[%clk 0:02:43.7]} 18. Be3
{[%clk 0:02:41.3]} 18... Qb7 {[%clk 0:02:44.2]} 19. Rac1 {[%clk 0:02:35.4]}
19... h6 {[%clk 0:02:41.4]} 20. Bd4 {[%clk 0:02:31.4]} 20... Rfd8 {[%clk
0:02:33.9]} 21. Ne1 {[%clk 0:02:20.7]} 21... Bxg2 {[%clk 0:02:20.9]} 22. Nxg2
{[%clk 0:02:21.6]} 22... Rxc1 {[%clk 0:02:20.6]} 23. Rxc1 {[%clk 0:02:13.9]}
23... Qd5 {[%clk 0:02:17.7]} 24. Ne3 {[%clk 0:02:09]} 24... Qxd4 {[%clk
0:02:13.8]} 25. Qc2 {[%clk 0:01:58.3]} 25... Qd2 {[%clk 0:02:09.7]} 26. Qc7
{[%clk 0:01:50.1]} 26... Qb2 {[%clk 0:02:02.2]} 27. Kg2 {[%clk 0:01:45.8]} 27...
Kf8 {[%clk 0:02:00.1]} 28. Rc3 {[%clk 0:01:36.2]} 28... Qxe2 {[%clk 0:01:46]}
29. Qe5 {[%clk 0:01:21.1]} 29... Qd2 {[%clk 0:01:38.4]} 30. Rc6 {[%clk
0:01:04.3]} 30... Qd4 {[%clk 0:01:38]} 31. Qxd4 {[%clk 0:01:00.9]} 31... Rxd4
{[%clk 0:01:37.4]} 32. Rxa6 {[%clk 0:01:01.8]} 32... g5 {[%clk 0:01:28]} 33. h3
{[%clk 0:01:01]} 33... Rd2 {[%clk 0:01:24.1]} 34. Kf3 {[%clk 0:00:59.6]} 34...
Nd5 {[%clk 0:01:22]} 35. Nxd5 {[%clk 0:00:59.6]} 35... Rxd5 {[%clk 0:01:22.4]}
36. Ke4 {[%clk 0:00:59.1]} 36... Bf6 {[%clk 0:01:22.3]} 37. f4 {[%clk
0:00:57.4]} 37... gxf4 {[%clk 0:01:21.8]} 38. gxf4 {[%clk 0:00:58.3]} 38... Rd4+
{[%clk 0:01:22.2]} 39. Ke3 {[%clk 0:00:58.4]} 39... Rc4 {[%clk 0:01:22.7]} 40.
Ra5 {[%clk 0:00:56]} 40... Rc3+ {[%clk 0:01:22.9]} 41. Ke4 {[%clk 0:00:56.5]}
41... Rxh3 {[%clk 0:01:23.3]} 42. Rxb5 {[%clk 0:00:57]} 42... Rxa3 {[%clk
0:01:23]} 43. Rb8+ {[%clk 0:00:57.3]} 43... Kg7 {[%clk 0:01:23.1]} 44. b5 {[%clk
0:00:58.2]} 44... Bb2 {[%clk 0:01:17.6]} 45. b6 {[%clk 0:00:54.5]} 45... f5#
{[%clk 0:01:16.7]} 0-1

[Event "*** Titled Tuesday Blitz"]
[Site "Chess.com"]
[Date "2020.04.21"]
[Round "6"]
[White "Filip_Covic"]
[Black "AttilaTurzo"]
[Result "0-1"]
[WhiteElo "2301"]
[BlackElo "2462"]
[TimeControl "180+1"]
[EndTime "11:07:15 PDT"]
[Termination "AttilaTurzo won by resignation"]

1. d4 {[%clk 0:03:00.9]} 1... d5 {[%clk 0:02:59.6]} 2. c4 {[%clk 0:02:52.2]}
2... c6 {[%clk 0:03:00.5]} 3. Nc3 {[%clk 0:02:51.9]} 3... Nf6 {[%clk 0:03:00.7]}
4. Nf3 {[%clk 0:02:51.8]} 4... a6 {[%clk 0:03:00.7]} 5. c5 {[%clk 0:02:48.9]}
5... g6 {[%clk 0:02:55.1]} 6. h3 {[%clk 0:02:44.9]} 6... Bg7 {[%clk 0:02:54.4]}
7. Bf4 {[%clk 0:02:44.9]} 7... O-O {[%clk 0:02:54.9]} 8. e3 {[%clk 0:02:45]}
8... Re8 {[%clk 0:02:50.3]} 9. Be2 {[%clk 0:02:45]} 9... Nfd7 {[%clk 0:02:49.3]}
10. O-O {[%clk 0:02:40.8]} 10... e5 {[%clk 0:02:49.6]} 11. dxe5 {[%clk
0:02:41.7]} 11... Nxe5 {[%clk 0:02:50.1]} 12. Nxe5 {[%clk 0:02:41.7]} 12... Bxe5
{[%clk 0:02:51]} 13. Bxe5 {[%clk 0:02:42.5]} 13... Rxe5 {[%clk 0:02:51.9]} 14.
b4 {[%clk 0:02:36.9]} 14... Qh4 {[%clk 0:02:28]} 15. Qd4 {[%clk 0:02:29.4]}
15... Qe7 {[%clk 0:02:10.4]} 16. Bg4 {[%clk 0:02:12.5]} 16... Bxg4 {[%clk
0:01:59.6]} 17. Qxg4 {[%clk 0:02:13.4]} 17... Nd7 {[%clk 0:01:57.1]} 18. Rfd1
{[%clk 0:02:06]} 18... f5 {[%clk 0:01:51.9]} 19. Qf3 {[%clk 0:02:01.8]} 19...
Nf6 {[%clk 0:01:49]} 20. Rd4 {[%clk 0:01:59.2]} 20... Rf8 {[%clk 0:01:47]} 21.
Ne2 {[%clk 0:01:50.9]} 21... Ne4 {[%clk 0:01:45.6]} 22. Nf4 {[%clk 0:01:45.8]}
22... g5 {[%clk 0:01:33.9]} 23. Nd3 {[%clk 0:01:45]} 23... Re6 {[%clk
0:01:33.5]} 24. Rc1 {[%clk 0:01:28.3]} 24... Rg6 {[%clk 0:01:30.7]} 25. Qe2
{[%clk 0:01:13.9]} 25... Qg7 {[%clk 0:01:14.4]} 26. f3 {[%clk 0:00:39.7]} 26...
Ng3 {[%clk 0:01:06.3]} 27. Qf2 {[%clk 0:00:38.9]} 27... f4 {[%clk 0:01:05.6]}
28. exf4 {[%clk 0:00:26.6]} 28... Qxd4 {[%clk 0:01:05.3]} 0-1

[Event "*** Titled Tuesday Blitz"]
[Site "Chess.com"]
[Date "2020.04.21"]
[Round "6"]
[White "mishanick"]
[Black "stefan_95"]
[Result "0-1"]
[WhiteElo "3036"]
[BlackElo "2662"]
[TimeControl "180+1"]
[EndTime "11:07:17 PDT"]
[Termination "stefan_95 won by resignation"]

1. d4 {[%clk 0:03:00.9]} 1... Nf6 {[%clk 0:02:59.7]} 2. c4 {[%clk 0:03:00.1]}
2... e6 {[%clk 0:02:59.9]} 3. Nf3 {[%clk 0:03:00.3]} 3... b6 {[%clk 0:02:59.7]}
4. g3 {[%clk 0:02:59.9]} 4... Ba6 {[%clk 0:02:59.8]} 5. Qc2 {[%clk 0:02:59.5]}
5... Bb4+ {[%clk 0:02:58.5]} 6. Bd2 {[%clk 0:02:59]} 6... Be7 {[%clk 0:02:58]}
7. e4 {[%clk 0:02:58.4]} 7... d5 {[%clk 0:02:57.6]} 8. cxd5 {[%clk 0:02:57.9]}
8... Bxf1 {[%clk 0:02:57.4]} 9. Kxf1 {[%clk 0:02:57.4]} 9... exd5 {[%clk
0:02:57.6]} 10. e5 {[%clk 0:02:57.9]} 10... Ne4 {[%clk 0:02:58.1]} 11. Nc3
{[%clk 0:02:57.3]} 11... Nxc3 {[%clk 0:02:58.2]} 12. bxc3 {[%clk 0:02:54.5]}
12... Qd7 {[%clk 0:02:58.4]} 13. Kg2 {[%clk 0:02:54.2]} 13... Nc6 {[%clk
0:02:58.2]} 14. h4 {[%clk 0:02:52.1]} 14... Nd8 {[%clk 0:02:52.6]} 15. c4 {[%clk
0:02:49.5]} 15... Ne6 {[%clk 0:02:44.9]} 16. Be3 {[%clk 0:02:48.2]} 16... dxc4
{[%clk 0:02:40.4]} 17. Qxc4 {[%clk 0:02:47.7]} 17... O-O-O {[%clk 0:02:40]} 18.
a4 {[%clk 0:02:31]} 18... Qd5 {[%clk 0:02:38.5]} 19. Qa6+ {[%clk 0:02:28.4]}
19... Qb7 {[%clk 0:02:37.3]} 20. Qd3 {[%clk 0:02:26.2]} 20... c5 {[%clk
0:02:15.6]} 21. Rhc1 {[%clk 0:01:58.1]} 21... Kb8 {[%clk 0:02:10.8]} 22. a5
{[%clk 0:01:58.3]} 22... Nxd4 {[%clk 0:02:07.5]} 23. Bxd4 {[%clk 0:01:55.7]}
23... Rxd4 {[%clk 0:02:07.3]} 24. Qf5 {[%clk 0:01:55.7]} 24... Rhd8 {[%clk
0:01:51.1]} 25. axb6 {[%clk 0:01:53]} 25... axb6 {[%clk 0:01:50.1]} 26. Rc3
{[%clk 0:01:50.5]} 26... c4 {[%clk 0:01:44.4]} 27. Qxf7 {[%clk 0:01:33.1]} 27...
Rf8 {[%clk 0:01:36.8]} 28. Qxg7 {[%clk 0:01:33]} 28... Rd3 {[%clk 0:01:25]} 29.
Rxd3 {[%clk 0:01:30.7]} 29... cxd3 {[%clk 0:01:24.7]} 30. Qg4 {[%clk 0:01:31.2]}
30... Bc5 {[%clk 0:01:17.5]} 31. e6 {[%clk 0:01:14.3]} 31... Qd5 {[%clk
0:01:14.2]} 32. Re1 {[%clk 0:01:11.8]} 32... d2 {[%clk 0:01:11.7]} 33. Rd1
{[%clk 0:01:10]} 33... h5 {[%clk 0:01:11.6]} 34. Rxd2 {[%clk 0:00:59.5]} 34...
Qxd2 {[%clk 0:01:06.5]} 35. Nxd2 {[%clk 0:00:48.3]} 35... Rxf2+ {[%clk
0:01:03.6]} 36. Kg1 {[%clk 0:00:48.7]} 36... Rxd2+ {[%clk 0:01:00.2]} 0-1